[Event "Titled Tuesday Blitz April 05 Late 2022"]
[White "Mangialardo, Tiago Carvalho"]
[Black "Kaganskiy, Gleb"]
[WhiteFideId "2130718"]
[BlackFideId "4132025"]
[WhiteElo "2053"]
[BlackElo "2165"]
[Result "0-1"]
[Round "04"]
[TimeControl "180+1"]
[Date "2022.04.06"]
[WhiteClock "0:00:01"]
[BlackClock "0:00:51"]

1. e4 {[%clk 0:03:00]}  d6 {[%clk 0:02:57]} 2. d4 {[%clk 0:02:58]}  Nf6 {[%clk 0:02:57]} 3. Nc3 {[%clk 0:02:57]}  e5 {[%clk 0:02:56]} 4. Nf3 {[%clk 0:02:55]}  Nbd7 {[%clk 0:02:55]} 5. Be3 {[%clk 0:02:53]}  Be7 {[%clk 0:02:54]} 6. Be2 {[%clk 0:02:53]}  c6 {[%clk 0:02:53]} 7. Qd2 {[%clk 0:02:51]}  b5 {[%clk 0:02:47]} 8. a3 {[%clk 0:02:46]}  Qc7 {[%clk 0:02:44]} 9. O-O {[%clk 0:02:45]}  O-O {[%clk 0:02:41]} 10. Rfe1 {[%clk 0:02:37]}  a5 {[%clk 0:02:39]} 11. Bd3 {[%clk 0:02:13]}  Re8 {[%clk 0:02:31]} 12. Ne2 {[%clk 0:01:58]}  Bf8 {[%clk 0:02:27]} 13. Ng3 {[%clk 0:01:33]}  d5 {[%clk 0:02:25]} 14. Qc3 {[%clk 0:01:27]}  b4 {[%clk 0:02:20]} 15. Qb3 {[%clk 0:01:14]}  a4 {[%clk 0:02:18]} 16. Qa2 {[%clk 0:01:11]}  exd4 {[%clk 0:02:12]} 17. Bxd4 {[%clk 0:01:04]}  bxa3 {[%clk 0:01:51]} 18. bxa3 {[%clk 0:00:59]}  c5 {[%clk 0:01:45]} 19. Bxf6 {[%clk 0:00:54]}  Nxf6 {[%clk 0:01:46]} 20. exd5 {[%clk 0:00:52]}  Rxe1+ {[%clk 0:01:42]} 21. Rxe1 {[%clk 0:00:53]}  Bd7 {[%clk 0:01:29]} 22. Qc4 {[%clk 0:00:52]}  Rb8 {[%clk 0:01:24]} 23. Ne5 {[%clk 0:00:44]}  Bb5 {[%clk 0:01:20]} 24. Qa2 {[%clk 0:00:24]}  Bxd3 {[%clk 0:01:17]} 25. Nxd3 {[%clk 0:00:23]}  c4 {[%clk 0:01:13]} 26. Ne5 {[%clk 0:00:22]}  Nxd5 {[%clk 0:01:13]} 27. Qxc4 {[%clk 0:00:21]}  Qxc4 {[%clk 0:01:11]} 28. Nxc4 {[%clk 0:00:22]}  Rc8 {[%clk 0:01:11]} 29. Re4 {[%clk 0:00:21]}  Nf6 {[%clk 0:01:08]} 30. Rd4 {[%clk 0:00:16]}  Bc5 {[%clk 0:01:07]} 31. Rd3 {[%clk 0:00:11]}  g6 {[%clk 0:01:03]} 32. Kf1 {[%clk 0:00:08]}  Bxf2 {[%clk 0:01:00]} 33. Nb6 {[%clk 0:00:07]}  Rxc2 {[%clk 0:00:58]} 34. Rd8+ {[%clk 0:00:05]}  Kg7 {[%clk 0:00:57]} 35. Ne2 {[%clk 0:00:03]}  Bxb6 {[%clk 0:00:55]} 36. Rb8 {[%clk 0:00:01]}  Be3 {[%clk 0:00:51]} 0-1


[Site "https://www.chess.com"]

[Event "Titled Tuesday Blitz April 05 Late 2022"]
[White "Mickiewicz, Piotr"]
[Black "Fishbein, Alexander"]
[WhiteFideId "1114891"]
[BlackFideId "2000377"]
[WhiteElo "2483"]
[BlackElo "2668"]
[Result "0-1"]
[Round "04"]
[TimeControl "180+1"]
[Date "2022.04.06"]
[WhiteClock "0:00:02"]
[BlackClock "0:00:17"]

1. Nf3 {[%clk 0:03:00]}  Nf6 {[%clk 0:02:59]} 2. g3 {[%clk 0:03:01]}  g6 {[%clk 0:02:59]} 3. Bg2 {[%clk 0:03:02]}  Bg7 {[%clk 0:03:00]} 4. O-O {[%clk 0:03:03]}  O-O {[%clk 0:03:00]} 5. d3 {[%clk 0:03:03]}  d6 {[%clk 0:03:00]} 6. e4 {[%clk 0:03:02]}  c5 {[%clk 0:03:00]} 7. Nc3 {[%clk 0:03:03]}  Nc6 {[%clk 0:03:00]} 8. h3 {[%clk 0:03:01]}  Rb8 {[%clk 0:02:59]} 9. a4 {[%clk 0:02:59]}  a6 {[%clk 0:02:59]} 10. Be3 {[%clk 0:02:59]}  b5 {[%clk 0:02:57]} 11. axb5 {[%clk 0:02:59]}  axb5 {[%clk 0:02:57]} 12. Qd2 {[%clk 0:02:58]}  b4 {[%clk 0:02:56]} 13. Ne2 {[%clk 0:02:57]}  Re8 {[%clk 0:02:53]} 14. Bh6 {[%clk 0:02:55]}  Bh8 {[%clk 0:02:53]} 15. Ng5 {[%clk 0:02:55]}  e6 {[%clk 0:02:30]} 16. f4 {[%clk 0:02:54]}  Nh5 {[%clk 0:02:27]} 17. g4 {[%clk 0:02:51]}  Nf6 {[%clk 0:02:25]} 18. f5 {[%clk 0:02:43]}  Ne5 {[%clk 0:02:18]} 19. fxe6 {[%clk 0:02:35]}  fxe6 {[%clk 0:02:09]} 20. Ng3 {[%clk 0:02:05]}  Qe7 {[%clk 0:02:07]} 21. Kh1 {[%clk 0:01:55]}  Bg7 {[%clk 0:02:04]} 22. Bxg7 {[%clk 0:01:49]}  Qxg7 {[%clk 0:02:05]} 23. Nf3 {[%clk 0:01:47]}  Nxf3 {[%clk 0:02:03]} 24. Rxf3 {[%clk 0:01:46]}  Bb7 {[%clk 0:01:50]} 25. Ra7 {[%clk 0:01:40]}  Rf8 {[%clk 0:01:43]} 26. Qf2 {[%clk 0:01:38]}  Nd7 {[%clk 0:01:37]} 27. g5 {[%clk 0:01:36]}  Ne5 {[%clk 0:01:33]} 28. Rf4 {[%clk 0:01:32]}  Rxf4 {[%clk 0:01:31]} 29. Qxf4 {[%clk 0:01:31]}  Rf8 {[%clk 0:01:31]} 30. Qe3 {[%clk 0:01:30]}  Ra8 {[%clk 0:01:26]} 31. Rxa8+ {[%clk 0:01:26]}  Bxa8 {[%clk 0:01:27]} 32. Qf2 {[%clk 0:01:24]}  Bc6 {[%clk 0:01:23]} 33. Nf1 {[%clk 0:01:19]}  Qe7 {[%clk 0:01:21]} 34. h4 {[%clk 0:01:17]}  Nf7 {[%clk 0:01:14]} 35. Ne3 {[%clk 0:01:14]}  Ne5 {[%clk 0:01:13]} 36. Bh3 {[%clk 0:01:12]}  Qf7 {[%clk 0:01:10]} 37. Kg1 {[%clk 0:01:04]}  Bd7 {[%clk 0:01:05]} 38. Kg2 {[%clk 0:01:01]}  Qe7 {[%clk 0:01:02]} 39. Qf4 {[%clk 0:00:48]}  b3 {[%clk 0:00:59]} 40. Nc4 {[%clk 0:00:36]}  Nxc4 {[%clk 0:00:50]} 41. dxc4 {[%clk 0:00:34]}  bxc2 {[%clk 0:00:50]} 42. Qd2 {[%clk 0:00:31]}  Ba4 {[%clk 0:00:46]} 43. e5 {[%clk 0:00:29]}  dxe5 {[%clk 0:00:43]} 44. Qc3 {[%clk 0:00:22]}  Qd7 {[%clk 0:00:37]} 45. Qxe5 {[%clk 0:00:17]}  Bc6+ {[%clk 0:00:34]} 46. Kg3 {[%clk 0:00:08]}  Qd3+ {[%clk 0:00:34]} 47. Kh2 {[%clk 0:00:05]}  Qd2+ {[%clk 0:00:34]} 48. Kg3 {[%clk 0:00:06]}  Qd3+ {[%clk 0:00:26]} 49. Kh2 {[%clk 0:00:05]}  Bd7 {[%clk 0:00:18]} 50. Bxe6+ {[%clk 0:00:04]}  Bxe6 {[%clk 0:00:18]} 51. Qxe6+ {[%clk 0:00:04]}  Kf8 {[%clk 0:00:18]} 52. Qc8+ {[%clk 0:00:04]}  Ke7 {[%clk 0:00:18]} 53. Qxc5+ {[%clk 0:00:04]}  Ke6 {[%clk 0:00:18]} 54. Qc8+ {[%clk 0:00:02]}  Ke5 {[%clk 0:00:18]} 55. Qe8+ {[%clk 0:00:02]}  Kd4 {[%clk 0:00:17]} 0-1


[Site "https://www.chess.com"]

[Event "Titled Tuesday Blitz April 05 Late 2022"]
[White "Mikhailov, Viacheslav"]
[Black "Mkrtchyan, Mariam"]
[WhiteFideId "4187369"]
[BlackFideId "13310828"]
[WhiteElo "2381"]
[BlackElo "1984"]
[Result "1-0"]
[Round "04"]
[TimeControl "180+1"]
[Date "2022.04.05"]
[WhiteClock "0:00:03"]
[BlackClock "0:00:01"]

1. Nf3 {[%clk 0:03:00]}  Nf6 {[%clk 0:02:58]} 2. g3 {[%clk 0:03:00]}  d5 {[%clk 0:02:54]} 3. Bg2 {[%clk 0:03:00]}  c5 {[%clk 0:02:50]} 4. O-O {[%clk 0:03:00]}  Nc6 {[%clk 0:02:49]} 5. d4 {[%clk 0:03:01]}  cxd4 {[%clk 0:02:44]} 6. Nxd4 {[%clk 0:03:02]}  e5 {[%clk 0:02:41]} 7. Nxc6 {[%clk 0:03:01]}  bxc6 {[%clk 0:02:40]} 8. c4 {[%clk 0:03:02]}  Be7 {[%clk 0:02:33]} 9. Bg5 {[%clk 0:03:01]}  O-O {[%clk 0:02:24]} 10. Bxf6 {[%clk 0:02:52]}  Bxf6 {[%clk 0:02:23]} 11. cxd5 {[%clk 0:02:53]}  cxd5 {[%clk 0:02:22]} 12. Nc3 {[%clk 0:02:53]}  Rb8 {[%clk 0:02:19]} 13. Nxd5 {[%clk 0:02:48]}  Rxb2 {[%clk 0:02:18]} 14. Qa4 {[%clk 0:02:46]}  Be6 {[%clk 0:02:08]} 15. Rad1 {[%clk 0:02:38]}  Rxe2 {[%clk 0:01:53]} 16. Qxa7 {[%clk 0:02:30]}  Qb8 {[%clk 0:01:45]} 17. Qa6 {[%clk 0:02:22]}  Rb2 {[%clk 0:01:36]} 18. a4 {[%clk 0:02:18]}  Bd8 {[%clk 0:01:26]} 19. h4 {[%clk 0:02:04]}  h6 {[%clk 0:01:15]} 20. Rc1 {[%clk 0:01:56]}  Bd7 {[%clk 0:01:11]} 21. Nc3 {[%clk 0:01:27]}  Bb6 {[%clk 0:00:59]} 22. Ne4 {[%clk 0:01:08]}  Bg4 {[%clk 0:00:47]} 23. Kh2 {[%clk 0:01:07]}  Be2 {[%clk 0:00:40]} 24. Rc4 {[%clk 0:01:07]}  Bxf1 {[%clk 0:00:31]} 25. Bxf1 {[%clk 0:01:08]}  f5 {[%clk 0:00:30]} 26. Nc3 {[%clk 0:00:56]}  Bxf2 {[%clk 0:00:24]} 27. Bg2 {[%clk 0:00:56]}  e4 {[%clk 0:00:18]} 28. Qg6 {[%clk 0:00:54]}  Rf6 {[%clk 0:00:12]} 29. Qh5 {[%clk 0:00:35]}  Qxg3+ {[%clk 0:00:11]} 30. Kh1 {[%clk 0:00:35]}  Rf8 {[%clk 0:00:04]} 31. Rc7 {[%clk 0:00:12]}  Be3 {[%clk 0:00:01]} 32. Rxg7+ {[%clk 0:00:05]}  Kxg7 {[%clk 0:00:01]} 33. Ne2 {[%clk 0:00:03]} 1-0


[Site "https://www.chess.com"]

[Event "Titled Tuesday Blitz April 05 Late 2022"]
[White "Mikhalsky, Vladimir"]
[Black "Bernat, David"]
[WhiteFideId "14144352"]
[BlackFideId "2099225"]
[WhiteElo "2509"]
[BlackElo "2304"]
[Result "1-0"]
[Round "04"]
[TimeControl "180+1"]
[Date "2022.04.06"]
[WhiteClock "0:00:27"]
[BlackClock "0:00:31"]

1. e4 {[%clk 0:02:58]}  c5 {[%clk 0:03:00]} 2. Nf3 {[%clk 0:02:58]}  g6 {[%clk 0:03:00]} 3. c3 {[%clk 0:02:55]}  Nf6 {[%clk 0:03:00]} 4. e5 {[%clk 0:02:55]}  Nd5 {[%clk 0:03:00]} 5. d4 {[%clk 0:02:55]}  cxd4 {[%clk 0:03:01]} 6. cxd4 {[%clk 0:02:55]}  Nc6 {[%clk 0:03:01]} 7. Nc3 {[%clk 0:02:55]}  Nxc3 {[%clk 0:02:57]} 8. bxc3 {[%clk 0:02:55]}  d6 {[%clk 0:02:58]} 9. Bc4 {[%clk 0:02:18]}  dxe5 {[%clk 0:02:56]} 10. Qb3 {[%clk 0:02:18]}  e6 {[%clk 0:02:54]} 11. Nxe5 {[%clk 0:02:18]}  Nxe5 {[%clk 0:02:53]} 12. dxe5 {[%clk 0:02:18]}  Qb6 {[%clk 0:02:37]} 13. Bb5+ {[%clk 0:02:08]}  Bd7 {[%clk 0:02:35]} 14. Bxd7+ {[%clk 0:02:04]}  Kxd7 {[%clk 0:02:36]} 15. Qa4+ {[%clk 0:01:40]}  Qc6 {[%clk 0:02:33]} 16. Qd4+ {[%clk 0:01:40]}  Kc7 {[%clk 0:02:29]} 17. O-O {[%clk 0:01:37]}  Bc5 {[%clk 0:02:06]} 18. Qf4 {[%clk 0:01:37]}  Raf8 {[%clk 0:02:06]} 19. Rb1 {[%clk 0:01:24]}  g5 {[%clk 0:02:06]} 20. Qf6 {[%clk 0:01:13]}  Rhg8 {[%clk 0:01:49]} 21. Qh6 {[%clk 0:01:09]}  Rg6 {[%clk 0:01:49]} 22. Qxh7 {[%clk 0:01:09]}  Qe4 {[%clk 0:01:37]} 23. Rb5 {[%clk 0:00:59]}  Qxe5 {[%clk 0:01:33]} 24. Be3 {[%clk 0:00:50]}  b6 {[%clk 0:01:20]} 25. Bxc5 {[%clk 0:00:49]}  bxc5 {[%clk 0:01:21]} 26. Rfb1 {[%clk 0:00:49]}  Rg7 {[%clk 0:01:07]} 27. Qh3 {[%clk 0:00:42]}  Qd5 {[%clk 0:00:49]} 28. Qe3 {[%clk 0:00:40]}  Kc6 {[%clk 0:00:43]} 29. Ra5 {[%clk 0:00:31]}  f5 {[%clk 0:00:39]} 30. Ra6+ {[%clk 0:00:30]}  Kd7 {[%clk 0:00:31]} 31. Rxa7+ {[%clk 0:00:30]}  Kd6 {[%clk 0:00:31]} 32. Rb6+ {[%clk 0:00:27]} 1-0


[Site "https://www.chess.com"]

[Event "Titled Tuesday Blitz April 05 Late 2022"]
[White "Moussard, Jules"]
[Black "Martinez Alcantara, Jose Eduardo"]
[WhiteFideId "642908"]
[BlackFideId "3805662"]
[WhiteElo "2589"]
[BlackElo "2690"]
[Result "1-0"]
[Round "04"]
[TimeControl "180+1"]
[Date "2022.04.05"]
[WhiteClock "0:01:01"]
[BlackClock "0:00:13"]

1. c4 {[%clk 0:02:59]}  c5 {[%clk 0:03:00]} 2. g3 {[%clk 0:02:58]}  Nc6 {[%clk 0:03:01]} 3. Bg2 {[%clk 0:02:59]}  g6 {[%clk 0:03:01]} 4. Nc3 {[%clk 0:02:58]}  Bg7 {[%clk 0:03:02]} 5. e3 {[%clk 0:02:59]}  d6 {[%clk 0:03:02]} 6. Nge2 {[%clk 0:02:59]}  e6 {[%clk 0:03:03]} 7. O-O {[%clk 0:02:59]}  Nge7 {[%clk 0:03:04]} 8. b3 {[%clk 0:02:58]}  O-O {[%clk 0:03:04]} 9. Bb2 {[%clk 0:02:59]}  b6 {[%clk 0:03:02]} 10. d3 {[%clk 0:02:53]}  Rb8 {[%clk 0:03:02]} 11. Qd2 {[%clk 0:02:52]}  Bb7 {[%clk 0:03:02]} 12. Rad1 {[%clk 0:02:48]}  Qd7 {[%clk 0:02:51]} 13. Ne4 {[%clk 0:02:47]}  f5 {[%clk 0:01:59]} 14. Bxg7 {[%clk 0:02:46]}  Kxg7 {[%clk 0:02:00]} 15. Qb2+ {[%clk 0:02:37]}  Ne5 {[%clk 0:01:39]} 16. f4 {[%clk 0:02:24]}  fxe4 {[%clk 0:01:35]} 17. fxe5 {[%clk 0:02:24]}  Rxf1+ {[%clk 0:01:18]} 18. Bxf1 {[%clk 0:02:24]}  Nf5 {[%clk 0:01:10]} 19. dxe4 {[%clk 0:02:20]}  Nxe3 {[%clk 0:01:05]} 20. Rxd6 {[%clk 0:02:07]}  Qf7 {[%clk 0:01:05]} 21. Nf4 {[%clk 0:02:08]}  Nxf1 {[%clk 0:01:05]} 22. Rxe6 {[%clk 0:02:04]}  Ne3 {[%clk 0:00:46]} 23. Qe2 {[%clk 0:01:24]}  Rd8 {[%clk 0:00:45]} 24. Qxe3 {[%clk 0:01:22]}  Rd1+ {[%clk 0:00:46]} 25. Kf2 {[%clk 0:01:18]}  Qd7 {[%clk 0:00:30]} 26. Rd6 {[%clk 0:01:17]}  Rxd6 {[%clk 0:00:28]} 27. exd6 {[%clk 0:01:18]}  Qxd6 {[%clk 0:00:29]} 28. Nd5 {[%clk 0:01:14]}  Bxd5 {[%clk 0:00:25]} 29. exd5 {[%clk 0:01:12]}  Qf6+ {[%clk 0:00:26]} 30. Kg2 {[%clk 0:01:10]}  Qb2+ {[%clk 0:00:16]} 31. Kh3 {[%clk 0:01:10]}  Qb1 {[%clk 0:00:17]} 32. Qe5+ {[%clk 0:01:07]}  Kg8 {[%clk 0:00:13]} 33. Qb8+ {[%clk 0:01:03]}  Kg7 {[%clk 0:00:12]} 34. Qxa7+ {[%clk 0:01:00]}  Kh6 {[%clk 0:00:12]} 35. Qf7 {[%clk 0:01:00]}  g5 {[%clk 0:00:07]} 36. Qf6+ {[%clk 0:00:59]}  Qg6 {[%clk 0:00:06]} 37. Qxg6+ {[%clk 0:01:00]}  Kxg6 {[%clk 0:00:07]} 38. Kg4 {[%clk 0:00:59]}  b5 {[%clk 0:00:08]} 39. cxb5 {[%clk 0:01:00]}  h5+ {[%clk 0:00:09]} 40. Kf3 {[%clk 0:01:00]}  Kf6 {[%clk 0:00:10]} 41. Ke4 {[%clk 0:01:00]}  Ke7 {[%clk 0:00:11]} 42. b6 {[%clk 0:01:01]}  Ke8 {[%clk 0:00:12]} 43. Ke5 {[%clk 0:01:01]}  h4 {[%clk 0:00:13]} 44. gxh4 {[%clk 0:01:01]} 1-0


[Site "https://www.chess.com"]

[Event "Titled Tuesday Blitz April 05 Late 2022"]
[White "Murzin, Volodar"]
[Black "Vusatiuk, Vladimir"]
[WhiteFideId "44155573"]
[BlackFideId "14118610"]
[WhiteElo "2585"]
[BlackElo "2157"]
[Result "1-0"]
[Round "04"]
[TimeControl "180+1"]
[Date "2022.04.05"]
[WhiteClock "0:00:03"]
[BlackClock "0:00:04"]

1. e4 {[%clk 0:03:00]}  c5 {[%clk 0:03:00]} 2. Nf3 {[%clk 0:03:00]}  Nc6 {[%clk 0:03:00]} 3. Bb5 {[%clk 0:03:00]}  g6 {[%clk 0:02:58]} 4. Bxc6 {[%clk 0:02:59]}  bxc6 {[%clk 0:02:49]} 5. O-O {[%clk 0:02:59]}  Bg7 {[%clk 0:02:46]} 6. c3 {[%clk 0:03:00]}  Nh6 {[%clk 0:02:37]} 7. d4 {[%clk 0:02:59]}  cxd4 {[%clk 0:02:36]} 8. cxd4 {[%clk 0:03:00]}  d5 {[%clk 0:02:36]} 9. e5 {[%clk 0:02:59]}  O-O {[%clk 0:02:30]} 10. h3 {[%clk 0:02:58]}  f6 {[%clk 0:02:20]} 11. Re1 {[%clk 0:02:57]}  Nf7 {[%clk 0:02:16]} 12. Bf4 {[%clk 0:02:48]}  g5 {[%clk 0:02:04]} 13. Bg3 {[%clk 0:02:41]}  g4 {[%clk 0:01:54]} 14. hxg4 {[%clk 0:02:31]}  Bxg4 {[%clk 0:01:55]} 15. exf6 {[%clk 0:02:28]}  Bxf6 {[%clk 0:01:49]} 16. Nbd2 {[%clk 0:02:26]}  Kh8 {[%clk 0:01:25]} 17. Qc2 {[%clk 0:02:06]}  Rc8 {[%clk 0:01:17]} 18. Ne5 {[%clk 0:02:01]}  Nxe5 {[%clk 0:00:58]} 19. Bxe5 {[%clk 0:01:59]}  Qe8 {[%clk 0:00:56]} 20. Qc3 {[%clk 0:01:47]}  Qg6 {[%clk 0:00:53]} 21. Nf1 {[%clk 0:01:44]}  Rg8 {[%clk 0:00:51]} 22. Bxf6+ {[%clk 0:01:25]}  exf6 {[%clk 0:00:45]} 23. Re7 {[%clk 0:01:23]}  h5 {[%clk 0:00:33]} 24. Kh2 {[%clk 0:01:09]}  h4 {[%clk 0:00:28]} 25. Ne3 {[%clk 0:01:07]}  Bf5 {[%clk 0:00:25]} 26. Qe1 {[%clk 0:00:51]}  Be4 {[%clk 0:00:24]} 27. f3 {[%clk 0:00:48]}  Qg3+ {[%clk 0:00:21]} 28. Qxg3 {[%clk 0:00:47]}  hxg3+ {[%clk 0:00:22]} 29. Kh3 {[%clk 0:00:45]}  Bd3 {[%clk 0:00:20]} 30. Ng4 {[%clk 0:00:39]}  Rg6 {[%clk 0:00:17]} 31. Rh1 {[%clk 0:00:31]}  f5 {[%clk 0:00:16]} 32. Kxg3+ {[%clk 0:00:26]}  Kg8 {[%clk 0:00:16]} 33. Re3 {[%clk 0:00:12]}  Bc4 {[%clk 0:00:08]} 34. Rh6 {[%clk 0:00:09]}  Rg7 {[%clk 0:00:06]} 35. b3 {[%clk 0:00:09]}  Bb5 {[%clk 0:00:06]} 36. Ree6 {[%clk 0:00:04]}  fxg4 {[%clk 0:00:05]} 37. fxg4 {[%clk 0:00:05]}  Rf8 {[%clk 0:00:05]} 38. a4 {[%clk 0:00:04]}  Bd3 {[%clk 0:00:05]} 39. Rxc6 {[%clk 0:00:04]}  Bf5 {[%clk 0:00:05]} 40. Rh4 {[%clk 0:00:03]}  Be4 {[%clk 0:00:05]} 41. b4 {[%clk 0:00:04]}  Rb8 {[%clk 0:00:04]} 42. b5 {[%clk 0:00:04]}  Rf7 {[%clk 0:00:05]} 43. Rch6 {[%clk 0:00:04]}  Rbf8 {[%clk 0:00:02]} 44. Rd6 {[%clk 0:00:02]}  Rf2 {[%clk 0:00:02]} 45. Rh2 {[%clk 0:00:03]}  Rf1 {[%clk 0:00:02]} 46. Ra6 {[%clk 0:00:03]}  Rd1 {[%clk 0:00:02]} 47. Rxa7 {[%clk 0:00:03]}  Rd3+ {[%clk 0:00:02]} 48. Kh4 {[%clk 0:00:02]}  Rxd4 {[%clk 0:00:03]} 49. Kg5 {[%clk 0:00:03]}  Bd3 {[%clk 0:00:03]} 50. Rh4 {[%clk 0:00:03]}  Be2 {[%clk 0:00:03]} 51. b6 {[%clk 0:00:03]}  Rff4 {[%clk 0:00:03]} 52. a5 {[%clk 0:00:04]}  Rxg4+ {[%clk 0:00:04]} 53. Rxg4 {[%clk 0:00:04]}  Rxg4+ {[%clk 0:00:04]} 54. Kf6 {[%clk 0:00:05]}  Rb4 {[%clk 0:00:05]} 55. g4 {[%clk 0:00:03]}  Bxg4 {[%clk 0:00:04]} 56. b7 {[%clk 0:00:03]} 1-0


[Site "https://www.chess.com"]

[Event "Titled Tuesday Blitz April 05 Late 2022"]
[White "Nasuta, Grzegorz"]
[Black "Mikhnenko, Alexander"]
[WhiteFideId "1141686"]
[BlackFideId "34143014"]
[WhiteElo "2630"]
[BlackElo "2407"]
[Result "1-0"]
[Round "04"]
[TimeControl "180+1"]
[Date "2022.04.06"]
[WhiteClock "0:01:20"]
[BlackClock "0:00:39"]

1. c3 {[%clk 0:02:58]}  Nf6 {[%clk 0:02:59]} 2. d4 {[%clk 0:02:56]}  g6 {[%clk 0:02:59]} 3. Bf4 {[%clk 0:02:50]}  Bg7 {[%clk 0:02:59]} 4. Nf3 {[%clk 0:02:49]}  O-O {[%clk 0:03:00]} 5. h3 {[%clk 0:02:48]}  d6 {[%clk 0:03:00]} 6. e3 {[%clk 0:02:49]}  Nbd7 {[%clk 0:03:01]} 7. Be2 {[%clk 0:02:48]}  Qe8 {[%clk 0:03:01]} 8. O-O {[%clk 0:02:46]}  e5 {[%clk 0:03:01]} 9. Bh2 {[%clk 0:02:47]}  h6 {[%clk 0:02:59]} 10. a4 {[%clk 0:02:46]}  a5 {[%clk 0:02:57]} 11. Na3 {[%clk 0:02:45]}  Qe7 {[%clk 0:02:43]} 12. Nb5 {[%clk 0:02:45]}  Ne8 {[%clk 0:02:42]} 13. Qd2 {[%clk 0:02:12]}  c6 {[%clk 0:02:21]} 14. Na3 {[%clk 0:02:12]}  e4 {[%clk 0:02:20]} 15. Ne1 {[%clk 0:02:12]}  f5 {[%clk 0:02:12]} 16. Nec2 {[%clk 0:02:09]}  g5 {[%clk 0:02:04]} 17. Rae1 {[%clk 0:01:59]}  d5 {[%clk 0:02:03]} 18. c4 {[%clk 0:01:58]}  Ndf6 {[%clk 0:02:01]} 19. cxd5 {[%clk 0:01:56]}  Nxd5 {[%clk 0:02:01]} 20. Nc4 {[%clk 0:01:53]}  f4 {[%clk 0:01:51]} 21. exf4 {[%clk 0:01:53]}  gxf4 {[%clk 0:01:47]} 22. Bf3 {[%clk 0:01:51]}  Bf5 {[%clk 0:01:14]} 23. Bxe4 {[%clk 0:01:37]}  Bxe4 {[%clk 0:01:13]} 24. f3 {[%clk 0:01:37]}  Nd6 {[%clk 0:00:55]} 25. Nxd6 {[%clk 0:01:34]}  Qxd6 {[%clk 0:00:55]} 26. fxe4 {[%clk 0:01:31]}  Ne3 {[%clk 0:00:51]} 27. Qxe3 {[%clk 0:01:30]}  fxe3 {[%clk 0:00:39]} 28. Bxd6 {[%clk 0:01:29]}  Rxf1+ {[%clk 0:00:39]} 29. Kxf1 {[%clk 0:01:24]}  Bf8 {[%clk 0:00:39]} 30. Bf4 {[%clk 0:01:20]} 1-0


[Site "https://www.chess.com"]

[Event "Titled Tuesday Blitz April 05 Late 2022"]
[White "Onslow, Alfie"]
[Black "Urbina Perez, Juan Antonio"]
[WhiteFideId "436976"]
[BlackFideId "2217368"]
[WhiteElo "1884"]
[BlackElo "2192"]
[Result "0-1"]
[Round "04"]
[TimeControl "180+1"]
[Date "2022.04.06"]
[WhiteClock "0:00:03"]
[BlackClock "0:01:29"]

1. e4 {[%clk 0:02:49]}  c5 {[%clk 0:02:51]} 2. Nc3 {[%clk 0:02:48]}  Nc6 {[%clk 0:02:50]} 3. Bb5 {[%clk 0:02:48]}  Nd4 {[%clk 0:02:50]} 4. Nf3 {[%clk 0:02:47]}  g6 {[%clk 0:02:48]} 5. O-O {[%clk 0:02:47]}  Bg7 {[%clk 0:02:47]} 6. Bd3 {[%clk 0:02:44]}  d6 {[%clk 0:02:41]} 7. h3 {[%clk 0:02:42]}  Nf6 {[%clk 0:02:40]} 8. Nxd4 {[%clk 0:02:39]}  cxd4 {[%clk 0:02:41]} 9. Ne2 {[%clk 0:02:40]}  Nd7 {[%clk 0:02:40]} 10. c3 {[%clk 0:02:37]}  dxc3 {[%clk 0:02:39]} 11. bxc3 {[%clk 0:02:37]}  O-O {[%clk 0:02:40]} 12. Bc2 {[%clk 0:02:32]}  b6 {[%clk 0:02:40]} 13. d4 {[%clk 0:02:32]}  Bb7 {[%clk 0:02:40]} 14. Be3 {[%clk 0:02:29]}  Rc8 {[%clk 0:02:40]} 15. Qd2 {[%clk 0:02:29]}  Nf6 {[%clk 0:02:40]} 16. f3 {[%clk 0:02:26]}  e5 {[%clk 0:02:38]} 17. d5 {[%clk 0:02:26]}  Ba6 {[%clk 0:02:36]} 18. Bd3 {[%clk 0:02:24]}  Bxd3 {[%clk 0:02:35]} 19. Qxd3 {[%clk 0:02:25]}  Nd7 {[%clk 0:02:35]} 20. c4 {[%clk 0:02:22]}  Qc7 {[%clk 0:02:34]} 21. Rfc1 {[%clk 0:02:21]}  h5 {[%clk 0:02:32]} 22. Nc3 {[%clk 0:02:17]}  Kh7 {[%clk 0:02:30]} 23. Nb5 {[%clk 0:02:16]}  Qb8 {[%clk 0:02:31]} 24. a4 {[%clk 0:02:14]}  Bh6 {[%clk 0:02:29]} 25. Bxh6 {[%clk 0:02:05]}  Kxh6 {[%clk 0:02:30]} 26. a5 {[%clk 0:01:58]}  Nc5 {[%clk 0:02:27]} 27. Qe3+ {[%clk 0:01:57]}  Kg7 {[%clk 0:02:28]} 28. axb6 {[%clk 0:01:56]}  axb6 {[%clk 0:02:28]} 29. Ra7 {[%clk 0:01:50]}  Rcd8 {[%clk 0:02:24]} 30. Rca1 {[%clk 0:01:48]}  Rd7 {[%clk 0:02:11]} 31. Qa3 {[%clk 0:01:24]}  Rxa7 {[%clk 0:01:59]} 32. Qxa7 {[%clk 0:01:25]}  Qd8 {[%clk 0:01:59]} 33. Qc7 {[%clk 0:01:13]}  Qg5 {[%clk 0:01:56]} 34. Qxd6 {[%clk 0:01:11]}  Qe3+ {[%clk 0:01:56]} 35. Kh1 {[%clk 0:01:05]}  Nd3 {[%clk 0:01:57]} 36. Nc7 {[%clk 0:00:25]}  Nf2+ {[%clk 0:01:53]} 37. Kh2 {[%clk 0:00:25]}  Qf4+ {[%clk 0:01:53]} 38. Kg1 {[%clk 0:00:25]}  Nxh3+ {[%clk 0:01:54]} 39. gxh3 {[%clk 0:00:24]}  Qg3+ {[%clk 0:01:54]} 40. Kf1 {[%clk 0:00:24]}  Qxf3+ {[%clk 0:01:54]} 41. Kg1 {[%clk 0:00:21]}  Qg3+ {[%clk 0:01:52]} 42. Kh1 {[%clk 0:00:21]}  Qxh3+ {[%clk 0:01:52]} 43. Kg1 {[%clk 0:00:21]}  Qg4+ {[%clk 0:01:52]} 44. Kf2 {[%clk 0:00:12]}  Qf4+ {[%clk 0:01:51]} 45. Ke2 {[%clk 0:00:12]}  Qxe4+ {[%clk 0:01:51]} 46. Kd2 {[%clk 0:00:13]}  Qd4+ {[%clk 0:01:51]} 47. Ke2 {[%clk 0:00:09]}  Qxa1 {[%clk 0:01:51]} 48. Qe7 {[%clk 0:00:09]}  Qb2+ {[%clk 0:01:49]} 49. Ke3 {[%clk 0:00:08]}  Qc3+ {[%clk 0:01:49]} 50. Kf2 {[%clk 0:00:07]}  Qd4+ {[%clk 0:01:47]} 51. Kg2 {[%clk 0:00:06]}  Qe4+ {[%clk 0:01:44]} 52. Kh2 {[%clk 0:00:05]}  Qf4+ {[%clk 0:01:44]} 53. Kg1 {[%clk 0:00:04]}  Qc1+ {[%clk 0:01:42]} 54. Kh2 {[%clk 0:00:04]}  Qc2+ {[%clk 0:01:42]} 55. Kg1 {[%clk 0:00:03]}  Qd1+ {[%clk 0:01:42]} 56. Kg2 {[%clk 0:00:03]}  Kg8 {[%clk 0:01:42]} 57. Qf6 {[%clk 0:00:01]}  Qe2+ {[%clk 0:01:40]} 58. Kg1 {[%clk 0:00:02]}  Qe3+ {[%clk 0:01:39]} 59. Kh1 {[%clk 0:00:02]}  Qe4+ {[%clk 0:01:38]} 60. Kg1 {[%clk 0:00:02]}  Qxc4 {[%clk 0:01:37]} 61. Ne6 {[%clk 0:00:01]}  Qc1+ {[%clk 0:01:30]} 62. Kg2 {[%clk 0:00:02]}  Qc2+ {[%clk 0:01:29]} 63. Kh1 {[%clk 0:00:02]}  fxe6 {[%clk 0:01:29]} 64. Qxe6+ {[%clk 0:00:02]}  Kg7 {[%clk 0:01:29]} 65. Qe7+ {[%clk 0:00:02]}  Rf7 {[%clk 0:01:29]} 66. Qxe5+ {[%clk 0:00:03]}  Kh7 {[%clk 0:01:29]} 0-1


[Site "https://www.chess.com"]